Workbook

Sheet 1. Forside
A1: Vordingborg Rens A/S
D8: Bilag A
D13: Indholdsfortegnelse
C16: Fane nr. 2 | D16: Samlet prisloft
C17: Fane nr. 3 | D17: Driftsomkostninger
C18: Fane nr. 4 | D18: Historiske investeringer
C19: Fane nr. 5 | D19: Gennemførte investeringer
C20: Fane nr. 6 | D20: Korrektion investeringer
C21: Fane nr. 7 | D21: Planlagte investeringer
C22: Fane nr. 8 | D22: 1:1 omkostninger
C23: Fane nr. 9 | D23: Miljø- og servicemål
C24: Fane nr. 10 | D24: Klimatilpasning
C25: Fane nr. 11 | D25: Nettofinansielle poster
C26: Fane nr. 12 | D26: Over- eller underdækning
C27: Fane nr. 13 | D27: Kontrol med indtægtsrammen og oversigt over ekstraordinære effektiviseringsgevinster

Sheet 2. Samlet prisloft
A1: ='1. Forside'!A1 -> Vordingborg Rens A/S
B4: Fane 2. Samlet prisloft for 2015
B6: Driftsomkostninger
B7: Driftsomkostninger i prisloftet for 2014 | C7: ='3. Driftsomkostninger'!C21 -> 17623107.31 | D7: kr.
B8: Bortfald af væsentlige omkostninger | C8: =-'3. Driftsomkostninger'!C17 -> 0 | D8: kr.
B9: Korrektion for prisudviklingen 2014-2015 | C9: ='3. Driftsomkostninger'!C23 -> 14098.48584 | D9: kr.
B10: Forhøjelse til effektivt niveau iht. benchmarkingen | C10: ='3. Driftsomkostninger'!C29 -> 0 | D10: kr.
B11: Korrektion for generelt effektiviseringskrav | C11: =-'3. Driftsomkostninger'!C35 -> -77541.67214 | D11: kr.
B12: Korrektion for individuelt effektiviseringskrav | C12: =-'3. Driftsomkostninger'!C44 -> -528252.631 | D12: kr.
B13: Driftsomkostninger i alt | C13: =SUM(C7:C12) -> 17031411.49 | D13: kr. | E13: =C13 -> 17031411.49 | F13: kr.
B14: Investeringer
B15: Tillæg for historiske investeringer | C15: ='4. Historiske investeringer'!C9 -> 5189686.763 | D15: kr.
B16: Tillæg for gennemførte investeringer i 2011-2013 | C16: ='5. Gennemførte investeringer'!F24 -> 276781.5067 | D16: kr.
B17: Korrektion af tillæg for planlagte investeringer vedrørende 2013 | C17: ='6. Korrektion investeringer'!C10 -> 58441.03333 | D17: kr.
B18: Tillæg for planlagte investeringer i 2014 og 2015 | C18: ='7. Planlagte investeringer'!F49 -> 489416.6667 | D18: kr.
B19: Investeringstillæg i alt | C19: =SUM(C15:C18) -> 6014325.97 | D19: kr. | E19: =C19 -> 6014325.97 | F19: kr.
B20: Øvrige omkostninger mv.
B21: Tillæg for 1:1 omkostninger i 2015 | C21: ='8. 1-1 omkostninger'!C10 -> 1786000 | D21: kr.
B22: Tillæg vedr. revisorerklæringer og DANVA/FVD-kontingent | C22: ='8. 1-1 omkostninger'!C18 -> 66000 | D22: kr.
B23: Korrektion ift. faktiske 1:1 omkostninger i 2013 | C23: ='8. 1-1 omkostninger'!C24 -> -3840552 | D23: kr.
B24: Tillæg for driftsomkostninger til miljø- og servicemål i 2015 | C24: ='9. Miljø- og servicemål'!C8 -> 0 | D24: kr.
B25: Korrektion ift. faktiske driftsomkostninger til miljø- og servicemål i 2013 | C25: ='9. Miljø- og servicemål'!C15 -> 0 | D25: kr.
B26: Tillæg for driftsomkostninger til medfinansiering af klimatilpasningsprojekter i 2015 | C26: ='10. Klimatilpasning'!C9 -> 0 | D26: kr.
B27: Korrektion ift. faktiske omkostninger til medfinansiering af klimatilpasningsprojekter i 2013 | C27: ='10. Klimatilpasning'!C16 -> 0 | D27: kr.
B28: Tillæg/fradrag for nettofinansielle poster i 2015 | C28: ='11. Nettofinansielle poster'!C9 -> 619000 | D28: kr.
B29: Korrektion ift. faktiske nettofinansielle poster i 2013 | C29: ='11. Nettofinansielle poster'!C16 -> -373110 | D29: kr.
B30: Øvrige omkostninger mv. i alt | C30: =SUM(C21:C29) -> -1742662 | D30: kr. | E30: =C30 -> -1742662 | F30: kr.
B31: Historisk over- eller underdækning
B32: Tillæg/fradrag for over- eller underdækning til og med 2010 | C32: ='12. Over- eller underdækning'!C11 -> 0 | D32: kr. | E32: =C32 -> 0 | F32: kr.
B33: Korrektion i forhold til tidligere indtægtsramme
B34: Korrektion for overholdelse af indtægtsramme i prisloft 2013 | C34: ='13. Kontrol med indtægtsrammen'!E27 -> -1689569.646 | D34: kr. | E34: =C34 -> -1689569.646 | F34: kr.
B35: Samlet prisloft
B36: Indtægtsramme i 2015 | E36: =SUM(E13:E34) -> 19613505.81 | F36: kr.
B37: Debiteret vandmængde i 2013 | E37: 1727965 | F37: m3
B38: Prisloft 2015 | E38: =E36/E37 -> 11.35063836 | F38: kr./m3

Sheet 3. Driftsomkostninger
A1: ='1. Forside'!A1 -> Vordingborg Rens A/S
B4: Fane 3. Driftsomkostninger
B6: Driftsomkostningerne i prisloftet for 2014
B7: Korrigerede driftsomkostninger i prisloftet for 2013 (DOiPL 2013) | C7: 19966978 | D7: kr.
B8: Prisfremskrivning 1,5 pct. | C8: =0.015*SUM(C7:C7) -> 299504.67 | D8: kr.
B9: Generelt effektiviseringskrav (0 pct.) | C9: 0 | D9: kr.
B10: Individuelt effektiviseringskrav | C10: -913114 | D10: kr.
B11: Bortfald af midlertidigt tillæg iht. § 8, stk. 5 (inkl. prisfremskrivning) | C11: =-1.015*1704691 -> -1730261.365 | D11: kr.
B12: Driftsomkostningerne i prisloftet for 2014 (DOiPL 2014) (korrigeret for bortfald af midlertidigt tillæg) | C12: =SUM(C7:C11) -> 17623107.31 | D12: kr.
B15: Korrektion for forventet bortfald af væsentlige omkostninger
B16: Selskabets indberettede bortfald af væsentlige omkostninger inden 2015 | C16: 0 | D16: kr.
B17: Korrektion for forventet bortfald | C17: =SUM(C16:C16) -> 0 | D17: kr.
B20: Korrektion for prisudviklingen fra 2014-2015
B21: Driftsomkostningerne i prisloftet for 2014 | C21: =C12-C17 -> 17623107.31 | D21: kr.
B22: Prisudvikling 2014 - 2015 | C22: 0.08 | D22: pct.
B23: Korrektion for prisudvikling | C23: =C21*(C22/100) -> 14098.48584 | D23: kr.
B26: Eventuel forhøjelse til effektivt niveau iht. benchmarkingen
B27: Selskabets effektive driftsomkostninger iht. benchmarkingen | C27: 13139788.55 | D27: kr.
B28: Selskabets pristalskorrigerede driftsomkostninger i 2015-niveau | C28: =C21+C23 -> 17637205.79 | D28: kr.
B29: Eventuel forhøjelse til effektivt niveau | C29: =IF(C28>C27,0,C27-C28) -> 0 | D29: kr.
B32: Korrektion for generelt effektiviseringskrav
B33: Driftsomkostningerne i prisloftet for 2014 | C33: =C21 -> 17623107.31 | D33: kr.
B34: Generelt effektiviseringskrav | C34: 0.44 | D34: pct.
B35: Endeligt generelt effektiviseringskrav | C35: =C33*(C34/100) -> 77541.67214 | D35: kr.
B38: Korrektion for individuelt effektiviseringskrav
B39: Rå effektiviseringspotentiale | C39: 4483318.409 | D39: kr.
B40: Effektiviseringspotentiale efter eventuel korrektion for særlige forhold | C40: 4483318.409 | D40: kr.
B41: Effektiviseringspotentiale efter forsigtighedshensyn | C41: 2113010.524 | D41: kr.
B42: Effektiviseringspotentiale efter eventuel korrektion for sammensætning af signifikante costdrivere | C42: 2113010.524 | D42: kr.
B43: Umiddelbart effektiviseringskrav | C43: =C42/4 -> 528252.631 | D43: kr.
B44: Endeligt individuelt effektiviseringskrav | C44: =IF(C43>0.05*C21,0.05*C21,IF(C43<0.01*C21,0,C43)) -> 528252.631 | D44: kr.

Sheet 4. Historiske investeringer
A1: ='3. Driftsomkostninger'!A1 -> Vordingborg Rens A/S
B4: Fane 4. Historiske investeringer
B6: Tillæg for historiske investeringer
B7: Værdi af selskabets materielle anlægsaktiver pr. 1. januar 2010 | C7: 153028996.3 | D7: kr.
B8: Den årlige standardafskrivning på de materielle anlægsaktiver iht. POLKA | C8: 5189686.763 | D8: kr.
B9: Tillæg i alt i 2015 | C9: =C8 -> 5189686.763 | D9: kr.

Sheet 5. Gennemførte investeringer
A1: ='4. Historiske investeringer'!A1 -> Vordingborg Rens A/S
B4: Fane 5. Gennemførte investeringer i 2010 - 2013
B6: Tillæg for gennemførte investeringer i 2013
B7: Beskrivelse af investeringen | C7: Årstal | D7: Std. levetid (år) | E7: Anskaffelses-pris (kr.) | F7: Afskrivning
B8: Mindre renseanlæg < 5.000 PE uden mulighed for opdeling | C8: 2013 | D8: 40 | E8: 36066 | F8: =E8/D8 -> 901.65 | G8: kr.
B9: Beluftningstanke, Mek/EL | C9: 2013 | D9: 20 | E9: 709940 | F9: =E9/D9 -> 35497 | G9: kr.
B10: Beluftningstanke, SRO | C10: 2013 | D10: 10 | E10: 177485 | F10: 17748.5 | G10: kr.
B11: Indløb med riste, SRO | C11: 2013 | D11: 10 | E11: 93419 | F11: 9341.9 | G11: kr.
B12: Efterklaringstanke, Konstruktioner | C12: 2013 | D12: 60 | E12: 164347 | F12: 2739.116667 | G12: kr.
B13: Indløb med riste, Konstruktioner | C13: 2013 | D13: 60 | E13: 588835 | F13: 9813.916667 | G13: kr.
B14: Indløb med riste, Mek/EL | C14: 2013 | D14: 20 | E14: 168239 | F14: 8411.95 | G14: kr.
B15: Indløb med riste, SRO | C15: 2013 | D15: 10 | E15: 84119 | F15: 8411.9 | G15: kr.
B16: Gasdisponering, Konstruktioner | C16: 2013 | D16: 60 | E16: 18012 | F16: 300.2 | G16: kr.
B17: Beluftningstanke, SRO | C17: 2013 | D17: 10 | E17: 99498 | F17: 9949.8 | G17: kr.
B18: Forafvanding, slam, Konstruktion | C18: 2013 | D18: 60 | E18: 16659 | F18: 277.65 | G18: kr.
B19: Slutafvanding, slam - højteknologisk (centrifuger), Mek/El | C19: 2013 | D19: 20 | E19: 28650 | F19: 1432.5 | G19: kr.
B20: Indløb med riste, Mek/EL | C20: 2013 | D20: 20 | E20: 17854 | F20: 892.7 | G20: kr.
B21: Indløb med riste, Konstruktioner | C21: 2013 | D21: 60 | E21: 78854 | F21: 1314.233333 | G21: kr.
B22: Tillæg for 2013 | F22: =SUM(F8:F21) -> 107033.0167 | G22: kr.
B23: Tillæg for 2010 - 2012 | F23: 169748.49 | G23: kr.
B24: Samlet tillæg for gennemførte investeringer | F24: =F22+F23 -> 276781.5067 | G24: kr.

Sheet 6. Korrektion investeringer
A1: ='5. Gennemførte investeringer'!A1 -> Vordingborg Rens A/S
B4: Fane 6. Korrektion af tillæg for planlagte investeringer
B6: Korrektion af tillæg for planlagte investeringer vedr. 2013
B7: Tillæg for planlagte investeringer i 2013 i prisloft 2013 | C7: 0 | D7: kr.
B8: Tillæg for planlagte investeringer i 2013 i prisloft 2014 | C8: 155625 | D8: kr.
B9: Selskabets faktiske afskrivninger på gennemførte investeringer i 2013 | C9: ='5. Gennemførte investeringer'!F22 -> 107033.0167 | D9: kr.
B10: Korrektion af tillæg for planlagte investeringer vedr. 2013 | C10: =C9-C7+C9-C8 -> 58441.03333 | D10: kr.

Sheet 7. Planlagte investeringer
A1: ='6. Korrektion investeringer'!A1 -> Vordingborg Rens A/S
B4: Fane 7. Planlagte investeringer
B6: Tillæg for planlagte investeringer i 2014 og 2015
B7: Beskrivelse af investeringen | C7: Årstal | D7: Std. levetid (år) | E7: Anskaffelses-pris (kr.) | F7: Afskrivning
B8: Forklaring, Konstruktioner | C8: 2014 | D8: 60 | E8: 250000 | F8: =E8/D8 -> 4166.666667 | G8: kr.
B9: Forklaring, Mek/EL | C9: 2014 | D9: 20 | E9: 250000 | F9: =E9/D9 -> 12500 | G9: kr.
B10: Slutafvanding, slam - højteknologisk (centrifuger), Mek/El | C10: 2014 | D10: 20 | E10: 100000 | F10: =E10/D10 -> 5000 | G10: kr.
B11: Rådnetanke, slam, Konstruktioner | C11: 2014 | D11: 60 | E11: 500000 | F11: 8333.333333 | G11: kr.
B12: Rådnetanke, slam, Mek/EL | C12: 2014 | D12: 20 | E12: 300000 | F12: 15000 | G12: kr.
B13: Rådnetanke, slam, SRO | C13: 2014 | D13: 10 | E13: 200000 | F13: 20000 | G13: kr.
B14: Pumpestationer m. overbygning (< 20 m2), SRO | C14: 2014 | D14: 10 | E14: 1500000 | F14: 150000 | G14: kr.
B15: Rådnetanke, slam, Konstruktioner | C15: 2014 | D15: 60 | E15: 1080000 | F15: 18000 | G15: kr.
B16: Rådnetanke, slam, Mek/EL | C16: 2014 | D16: 20 | E16: 120000 | F16: 6000 | G16: kr.
B17: Slutafvanding, slam - højteknologisk (centrifuger), Konstruktioner | C17: 2014 | D17: 60 | E17: 1350000 | F17: 22500 | G17: kr.
B18: Slutafvanding, slam - højteknologisk (centrifuger), Mek/El | C18: 2014 | D18: 20 | E18: 75000 | F18: 3750 | G18: kr.
B19: Slutafvanding, slam - højteknologisk (centrifuger), SRO | C19: 2014 | D19: 10 | E19: 75000 | F19: 7500 | G19: kr.
B20: Indløb med riste, Konstruktioner | C20: 2015 | D20: 60 | E20: 250000 | F20: 4166.666667 | G20: kr.
B21: Indløb med riste, Mek/EL | C21: 2015 | D21: 20 | E21: 150000 | F21: 7500 | G21: kr.
B22: Indløb med riste, SRO | C22: 2015 | D22: 10 | E22: 100000 | F22: 10000 | G22: kr.
B23: Sand- og fedtfang, Kontruktioner | C23: 2015 | D23: 60 | E23: 125000 | F23: 2083.333333 | G23: kr.
B24: Sand- og fedtfang, Mek/EL | C24: 2015 | D24: 20 | E24: 75000 | F24: 3750 | G24: kr.
B25: Sand- og fedtfang, SRO | C25: 2015 | D25: 10 | E25: 50000 | F25: 5000 | G25: kr.
B26: Forklaring, Konstruktioner | C26: 2015 | D26: 60 | E26: 250000 | F26: 4166.666667 | G26: kr.
B27: Forklaring, Mek/EL | C27: 2015 | D27: 20 | E27: 150000 | F27: 7500 | G27: kr.
B28: Forklaring, SRO | C28: 2015 | D28: 10 | E28: 100000 | F28: 10000 | G28: kr.
B29: Beluftningstanke, Konstruktioner | C29: 2015 | D29: 60 | E29: 375000 | F29: 6250 | G29: kr.
B30: Beluftningstanke, Mek/EL | C30: 2015 | D30: 20 | E30: 225000 | F30: 11250 | G30: kr.
B31: Beluftningstanke, SRO | C31: 2015 | D31: 10 | E31: 150000 | F31: 15000 | G31: kr.
B32: Efterklaringstanke, Konstruktioner | C32: 2015 | D32: 60 | E32: 375000 | F32: 6250 | G32: kr.
B33: Efterklaringstanke, Mek/El | C33: 2015 | D33: 20 | E33: 225000 | F33: 11250 | G33: kr.
B34: Efterklaringstanke, SRO | C34: 2015 | D34: 10 | E34: 150000 | F34: 15000 | G34: kr.
B35: Efterbehandlingsanlæg (sandfilter), Konstruktioner | C35: 2015 | D35: 60 | E35: 250000 | F35: 4166.666667 | G35: kr.
B36: Efterbehandlingsanlæg (sandfilter), Mek/EL | C36: 2015 | D36: 20 | E36: 150000 | F36: 7500 | G36: kr.
B37: Efterbehandlingsanlæg (sandfilter), SRO | C37: 2015 | D37: 10 | E37: 100000 | F37: 10000 | G37: kr.
B38: Forafvanding, slam, Konstruktion | C38: 2015 | D38: 60 | E38: 250000 | F38: 4166.666667 | G38: kr.
B39: Forafvanding, slam, Mek/EL | C39: 2015 | D39: 20 | E39: 150000 | F39: 7500 | G39: kr.
B40: Forafvanding, slam, SRO | C40: 2015 | D40: 10 | E40: 100000 | F40: 10000 | G40: kr.
B41: Slutafvanding, slam - højteknologisk (centrifuger), Konstruktioner | C41: 2015 | D41: 60 | E41: 375000 | F41: 6250 | G41: kr.
B42: Slutafvanding, slam - højteknologisk (centrifuger), Mek/El | C42: 2015 | D42: 20 | E42: 225000 | F42: 11250 | G42: kr.
B43: Slutafvanding, slam - højteknologisk (centrifuger), SRO | C43: 2015 | D43: 10 | E43: 150000 | F43: 15000 | G43: kr.
B44: Slutdisponering, slam - højteknologisk (slamtørring), Konstruktioner | C44: 2015 | D44: 60 | E44: 250000 | F44: 4166.666667 | G44: kr.
B45: Slutdisponering, slam - højteknologisk (slamtørring), Mek/EL | C45: 2015 | D45: 20 | E45: 150000 | F45: 7500 | G45: kr.
B46: Slutdisponering, slam - højteknologisk (slamtørring), SRO | C46: 2015 | D46: 10 | E46: 100000 | F46: 10000 | G46: kr.
B47: Tillæg for 2014 | F47: =SUMIF(C8:C46,"2014",F8:F46) -> 272750 | G47: kr.
B48: Tillæg for 2015 | F48: =SUMIF(C8:C46,"2015",F8:F46) -> 216666.6667 | G48: kr.
B49: Tillæg i alt | F49: =F47+F48 -> 489416.6667 | G49: kr.

Sheet 8. 1-1 omkostninger
A1: ='7. Planlagte investeringer'!A1 -> Vordingborg Rens A/S
B4: Fane 8. 1:1 omkostninger
B6: Tillæg for budgetterede 1:1 omkostninger i 2015
B7: Betaling til Forsyningssekretariatet | C7: 33000 | D7: kr.
B8: Spildevandsafgift | C8: 1600000 | D8: kr.
B9: Ejendomsskatter | C9: 153000 | D9: kr.
B10: Tillæg i alt | C10: =SUM(C7:C9) -> 1786000 | D10: kr.
B15: Tillæg for budgetterede nødvendige udgifter til revisorerklæringer samt ordinært medlemskab af DANVA og FVD i 2015
B16: Betaling for ordinært medlemskab af DANVA/FVD | C16: 40000 | D16: kr.
B17: Betaling for revisorerklæringer | C17: 26000 | D17: kr.
B18: Tillæg i alt | C18: =SUM(C16:C17) -> 66000 | D18: kr.
B21: Korrektion af tillæg for faktiske 1:1 omkostninger (inkl. revisorerklæringer og ordinært medlemskab af DANVA/FVD) i 2013
B22: Selskabets faktiske 1:1 omkostninger mv. i 2013, jf. reguleringsregnskabet | C22: -1599485 | D22: kr.
B23: Tillæg for budgetterede 1:1 omkostninger mv. i prisloft 2013 | C23: 2241067 | D23: kr.
B24: Korrektion af tillæg for budgetterede 1:1 omkostninger mv. i 2013 | C24: =C22-C23 -> -3840552 | D24: kr.

Sheet 9. Miljø- og servicemål
A1: ='8. 1-1 omkostninger'!A1 -> Vordingborg Rens A/S
B4: Fane 9. Driftsomkostninger til miljø- og servicemål
B6: Tillæg for budgetterede driftsomkostninger til miljø- og servicemål i 2015
C7: 0 | D7: kr.
B8: Tillæg i alt | C8: =SUM(C7:C7) -> 0 | D8: kr.
B12: Korrektion af tillæg for faktiske driftsomkostninger til miljø- og servicemål i 2013
B13: Selskabets faktiske driftsomkostninger til miljø- og servicemål i 2013, jf. reguleringsregnskabet | C13: 0 | D13: kr.
B14: Tillæg for budgetterede driftsomkostninger til miljø- og servicemål i prisloft 2013 | C14: 0 | D14: kr.
B15: Korrektion af tillæg for budgetterede driftsomkostninger til miljø- og servicemål i 2013 | C15: =C13-C14 -> 0 | D15: kr.

Sheet 10. Klimatilpasning
A1: ='9. Miljø- og servicemål'!A1 -> Vordingborg Rens A/S
B4: Fane 10. Medfinansiering af klimatilpasningsprojekter
B7: Tillæg for budgetterede omkostninger til medfinansiering af klimatilpasningsprojekter i 2015
C8: 0 | D8: kr.
B9: Tillæg i alt | C9: =SUM(C8:C8) -> 0 | D9: kr.
B13: Korrektion af tillæg for faktiske omkostninger til medfinansiering af klimatilpasningsprojekter i 2013
B14: Selskabets faktiske driftsomkostninger til klimatilpasningsprojekter i 2013, jf. reguleringsregnskabet | C14: 0 | D14: kr.
B15: Tillæg for budgetterede driftsomkostninger til klimatilpasningsprojekter i prisloft 2013 | C15: 0 | D15: kr.
B16: Korrektion af tillæg for budgetterede omkostninger til klimatilpasningsprojekter i 2013 | C16: =C14-C15 -> 0 | D16: kr.

Sheet 11. Nettofinansielle poster
A1: ='10. Klimatilpasning'!A1 -> Vordingborg Rens A/S
B4: Fane 11. Nettofinansielle poster
B6: Tillæg for budgetterede nettofinansielle poster i 2015
B7: Budgetterede renteudgifter og gebyrer i 2015 | C7: 629000 | D7: kr.
B8: Budgetterede renteindtægter i 2015 | C8: 10000 | D8: kr.
B9: Tillæg/fradrag i alt | C9: =C7-C8 -> 619000 | D9: kr.
B13: Korrektion af tillæg for faktiske nettofinansielle poster i 2013
B14: Selskabets faktiske nettofinansielle poster i 2013, jf. reguleringsregnskabet | C14: 428390 | D14: kr.
B15: Tillæg for budgetterede nettofinansielle poster i prisloft 2013 | C15: 801500 | D15: kr.
B16: Korrektion af tillæg for budgetterede nettofinansielle poster i 2013 | C16: =C14-C15 -> -373110 | D16: kr.

Sheet 12. Over- eller underdækning
A1: ='11. Nettofinansielle poster'!A1 -> Vordingborg Rens A/S
B4: Fane 12. Over- eller underdækning til og med 2010
B6: Tillæg/fradrag for over- eller underdækning til og med 2010
B7: Opgjort over- eller underdækning per 31. december 2010 | C7: 0 | D7: kr.
B8: Heraf beløb indregnet i prislofterne for 2012 - 2014 | C8: 0 | D8: kr.
B9: Endnu ikke indregnet over- eller underdækning | C9: =C7-C8 -> 0 | D9: kr.
B10: Resterende indregningsperiode (fastsat i prisloftet for 2012) | C10: 0 | D10: år
B11: Tillæg/fradrag i alt | C11: =IF(C7=0,0,C9/C10) -> 0 | D11: kr.

Sheet 13. Kontrol med indtægtsrammen
A1: ='12. Over- eller underdækning'!A1 -> Vordingborg Rens A/S
B4: Fane 13. Korrektion for overholdelse af indtægtsrammen i prisloftet for 2013
B6: Samlet opgørelse vedrørende overholdelse af indtægtsrammen i prisloftet for 2013
B7: Indtægtsramme i prisloftet for 2013 | E7: 28159204.35 | F7: kr.
B8: Ikke anvendt likviditet vedrørende investeringer i 2013
B9: Tillæg for historiske investeringer | C9: 5491644 | D9: kr.
B10: Tillæg for gennemførte investeringer i 2011 | C10: 169748.49 | D10: kr.
B11: Korrektion af tillæg for planlagte investeringer i 2011 | C11: 0 | D11: kr.
B12: Tillæg for planlagte investeringer i 2012 og 2013 | C12: 177118 | D12: kr.
B13: Indtægter fra tilslutningsbidrag | C13: 0 | D13: kr.
B14: Indtægter fra salg af anlægsaktiver | C14: 0 | D14: kr.
B15: Erstatninger vedr. anlægsaktiver mv. | C15: 0 | D15: kr.
B16: Ekstraordinær effektiviseringsgevinst anvendt til investeringer | C16: 0 | D16: kr.
B17: Udgifter til investeringer | C17: -7038048 | D17: kr.
B18: Ikke anvendt likviditet vedr. investeringer i alt | C18: =SUM(C9:C17) -> -1199537.51 | D18: kr. | E18: =IF(C18<0,0,-C18) -> 0 | F18: kr.
B19: Ekstraordinære effektiviseringsgevinster anvendt til takstnedsættelse
B20: Ekstraordinær effektiviseringsgevinst anvendt til takstnedsættelse | C20: 0 | D20: kr. | E20: =-C20 -> 0 | F20: kr.
B21: Korrektion af ikke opkrævet tillæg fra 2011 i prisloft 2013
B22: Korrektion af ikke opkrævet tillæg fra 2011 i prisloft 2013 | C22: 0 | D22: kr. | E22: =-C22 -> 0 | F22: kr.
B23: Indtægter fra primære aktiviteter mv.
B24: Indtægter fra kubikmetertakster, faste takster, særbidrag, målergebyrer samt andre takster og gebyrer | C24: 29848774 | D24: kr.
B25: Andre indtægter i prisloftåret, som selskabet har opnået i forbindelse med eller som følge af selskabets primære aktiviteter | C25: 0 | D25: kr.
B26: Indtægter fra primære aktiviteter mv. i alt | C26: =SUM(C24:C25) -> 29848774 | D26: kr. | E26: =-C26 -> -29848774 | F26: kr.
B27: Tillæg/fradrag i prisloftet for 2015 i alt | E27: =E7+E18+E20+E22+E26 -> -1689569.646 | F27: kr.
B31: Oversigt over ekstraordinære effektiviseringsgevinster
C33: 2012 | E33: 2013 | G33: 2014 | I33: 2015 | K33: 2016
B34: Indhentet ekstraordinær effektiviseringsgevinst | C34: 0 | D34: kr. | E34: 0 | F34: kr. | H34: kr. | J34: kr. | L34: kr.
B35: Gevinst anvendt til investeringer | C35: 0 | D35: kr. | E35: 0 | F35: kr. | H35: kr. | J35: kr. | L35: kr.
B36: Gevinst anvendt til takstnedsættelse | C36: 0 | D36: kr. | E36: 0 | F36: kr. | H36: kr. | J36: kr. | L36: kr.
B37: Korrektion for effektiviseringsgevinst der ikke er anvendt inden 4 år | C37: 0 | D37: kr. | E37: 0 | F37: kr. | H37: kr. | J37: kr. | K37: =IF(C38>SUM(C35:I36),C38-SUM(E35:I36),0)*-1 -> 0 | L37: kr.
B38: Resterende gevinst | C38: =C34-C35-C36 -> 0 | D38: kr. | E38: =C38+E34-E35-E36 -> 0 | F38: kr. | G38: =E38+G34-G35-G36 -> 0 | H38: kr. | I38: =G38+I34-I35-I36 -> 0 | J38: kr. | K38: =K34-K35-K36+K37 -> 0 | L38: kr.
